bitfinex/quotes_SOLUSD_20260115
["timestamp","ask_amount","ask_price","bid_price","bid_amount"]
[1768496509985,6.9615515,143.65,143.62,0.63913407]
[1768496511371,7.58735235,143.65,143.62,0.63913407]
[1768496511893,10.93702773,143.65,143.61,0.64056977]
[1768496515085,3.34967538,143.64,143.61,0.64056977]
[1768496515283,10.93702773,143.65,143.61,0.64056977]
[1768496515888,7.58735235,143.65,143.61,0.64056977]
[1768496516089,10.93702773,143.65,143.61,0.64056977]
[1768496519898,7.58735235,143.65,143.61,0.64056977]
[1768496520201,10.93702773,143.65,143.61,0.64056977]
[1768496521282,10.31181212,143.64,143.61,0.64056977]
[1768496523405,6.96213674,143.64,143.61,0.64056977]
[1768496527606,6.96213674,143.64,143.61,0.64056977]
[1768496530313,6.96213674,143.64,143.58,0.64056977]
[1768496530314,0.62580085,143.61,143.58,0.64056977]
[1768496530904,0.62580085,143.63,143.59,0.64056977]
[1768496531114,5.85968055,143.63,143.59,0.64056977]
[1768496531318,0.62580085,143.62,143.59,0.64056977]
[1768496531612,0.62580085,143.63,143.59,7.60458434]
[1768496531821,30.22643995,143.64,143.6,0.64056977]
[1768496532192,0.62580085,143.63,143.6,0.64056977]
[1768496533286,0.62580085,143.63,143.59,0.64056977]
[1768496533703,5.85968055,143.63,143.59,0.64056977]
[1768496534089,7.58923471,143.61,143.57,7.60567041]
[1768496534294,7.58923471,143.61,143.58,0.64056977]
[1768496534588,12.82311441,143.61,143.58,0.64056977]
[1768496535202,0.62580085,143.58,143.53,5.2338797]
[1768496535416,5.2338797,143.57,143.53,0.64056977]
[1768496535708,5.2338797,143.57,143.53,7.60768382]
[1768496536110,12.19815297,143.59,143.55,0.64056977]
[1768496536298,6.96427327,143.59,143.55,0.64056977]
[1768496537413,7.59007412,143.59,143.55,0.64056977]
[1768496538210,7.59076953,143.58,143.54,12.84113648]
[1768496538401,7.59076953,143.58,143.54,0.64056977]
[1768496540011,0.62580085,143.57,143.53,0.64056977]
[1768496540214,6.96572861,143.56,143.53,0.64056977]
[1768496540426,12.19960831,143.56,143.52,0.64056977]
[1768496540914,6.96572861,143.56,143.52,0.64056977]
[1768496541086,6.96572861,143.56,143.53,0.57318794]
[1768496541506,6.96544773,143.57,143.53,0.57318794]
[1768496542101,7.46790702,143.57,143.53,0.57318794]
[1768496542307,7.46790702,143.57,143.54,0.57318794]
[1768496543997,0.56042463,143.57,143.54,0.57318794]
[1768496544201,7.52567382,143.57,143.54,0.57318794]
[1768496544506,7.52567382,143.57,143.53,7.54030018]
[1768496544710,7.52567382,143.57,143.53,0.57318794]
[1768496545498,7.52567382,143.57,143.54,0.54505901]
[1768496545905,7.51263169,143.58,143.55,0.54505901]
[1768496547004,6.96483964,143.58,143.55,0.54505901]
[1768496547212,17.95666141,143.61,143.57,0.54505901]
[1768496547515,0.54779205,143.6,143.55,0.54505901]
[1768496547723,5.78167175,143.6,143.56,0.54505901]
[1768496547909,0.54779205,143.6,143.56,0.54505901]
[1768496548214,5.78167175,143.6,143.56,0.54505901]
[1768496548590,0.54779205,143.6,143.56,0.54505901]
[1768496548791,0.48781251,143.6,143.56,5.77893871]
[1768496549605,0.48781251,143.6,143.56,0.54505901]
[1768496549810,22.64274906,143.61,143.57,0.54505901]
[1768496550328,17.40886936,143.61,143.57,0.54505901]
[1768496550518,29.60605245,143.61,143.57,0.54505901]
[1768496550896,0.54779205,143.6,143.57,0.54505901]
[1768496551720,6.96427327,143.59,143.57,0.54505901]
[1768496552304,17.40631921,143.63,143.59,0.54505901]
[1768496552514,17.95411126,143.63,143.59,5.77893871]
[1768496552699,6.96246797,143.63,143.58,0.54505901]
[1768496552899,6.96246797,143.63,143.6,0.54505901]
[1768496553100,6.96246797,143.63,143.6,5.77893871]
[1768496553400,0.54779205,143.64,143.61,0.54505901]
[1768496553401,7.50985412,143.64,143.61,0.54505901]
[1768496553897,0.54779205,143.63,143.59,0.54505901]
[1768496554605,0.54779205,143.63,143.58,5.2338797]
[1768496554925,0.54779205,143.62,143.58,5.77893871]
[1768496555306,0.54779205,143.61,143.56,0.54505901]
[1768496555500,6.96427327,143.59,143.55,12.74495386]
[1768496555705,7.51206532,143.59,143.55,5.77893871]
[1768496556224,7.51206532,143.59,143.55,0.54505901]
[1768496556612,0.54779205,143.57,143.53,0.54505901]
[1768496556934,5.78167175,143.57,143.53,0.54505901]
[1768496557294,0.54779205,143.56,143.52,0.54505901]
[1768496557707,7.51382813,143.56,143.52,0.54505901]
[1768496557997,12.74770783,143.56,143.52,0.54505901]
[1768496558212,7.51382813,143.56,143.52,0.54505901]
[1768496558613,0.54779205,143.55,143.52,0.54505901]
[1768496559119,0.54779205,143.54,143.49,7.51402315]
[1768496559298,0.54779205,143.54,143.49,12.74790285]
[1768496559299,5.78167175,143.54,143.49,12.74790285]
[1768496559503,0.54779205,143.54,143.5,12.74748025]
[1768496559712,7.51486157,143.54,143.5,5.77893871]
[1768496560495,7.51486157,143.54,143.5,0.54505901]
[1768496560720,7.51486157,143.54,143.5,12.74741144]
[1768496562824,7.51486157,143.54,143.51,5.2338797]
[1768496562998,7.51486157,143.54,143.5,7.51353174]
[1768496563202,7.51486157,143.54,143.5,12.74741144]
[1768496563621,7.51486157,143.54,143.5,5.77893871]
[1768496565535,0.54779205,143.54,143.5,12.74752077]
[1768496566447,0.54779205,143.54,143.51,0.54505901]
[1768496567911,7.51462092,143.54,143.51,0.54505901]
[1768496568811,7.51462092,143.54,143.5,12.20246176]
[1768496569012,0.54779205,143.53,143.49,7.51400206]
[1768496569219,0.54779205,143.53,143.49,12.74788176]
[1768496569535,0.54779205,143.51,143.48,0.54505901]
[1768496569742,0.54779205,143.5,143.47,0.1]
[1768496570114,0.54779205,143.5,143.47,5.87893871]
[1768496570617,7.51606553,143.51,143.47,5.87893871]
[1768496570818,7.51606553,143.51,143.47,7.61511756]
[1768496570819,0.52183815,143.5,143.47,7.61511756]
[1768496571020,7.48902271,143.53,143.49,0.53616586]
[1768496571236,7.48902271,143.53,143.49,5.77004556]
[1768496571747,0.52183815,143.52,143.48,10.22]
[1768496572035,0.52183815,143.52,143.47,7.60611265]
[1768496572036,0.52183815,143.51,143.47,17.82611265]
[1768496572240,0.52183815,143.51,143.47,23.05999235]
[1768496572913,7.4903552,143.51,143.47,0.63616586]
[1768496573111,7.4903552,143.51,143.47,5.87004556]
[1768496573834,7.48902271,143.53,143.46,0.63616586]
[1768496574011,7.48902271,143.53,143.5,5.2338797]
[1768496574208,5.75571785,143.52,143.47,0.53616586]
[1768496574438,0.52183815,143.5,143.46,10.3]
[1768496574616,0.52183815,143.5,143.46,0.1]
[1768496574617,0.46183816,143.49,143.46,0.1]
[1768496574817,5.17387971,143.49,143.46,0.1]
[1768496575012,6.96950822,143.49,143.43,0.53616586]
[1768496575225,12.20338792,143.49,143.44,5.2338797]
[1768496576251,29.56620485,143.49,143.44,5.77004556]
[1768496576549,24.33232515,143.49,143.44,12.74157027]
[1768496576844,0.52183815,143.48,143.44,12.74157027]
[1768496577044,0.46183816,143.48,143.44,7.50769057]
[1768496577353,0.46183816,143.48,143.44,5.77004556]
[1768496577518,5.2338797,143.48,143.43,17.70801309]
[1768496577717,5.2338797,143.48,143.43,22.94189279]
[1768496578961,5.75571785,143.48,143.44,0.53616586]
[1768496579659,5.75571785,143.48,143.43,12.20572693]
[1768496579660,0.52183815,143.47,143.43,12.20572693]
[1768496580363,0.52183815,143.47,143.43,12.74189279]
[1768496580542,7.49190882,143.48,143.44,5.77004556]
[1768496580967,0.52183815,143.47,143.43,6.97184723]
[1768496581164,0.52183815,143.47,143.43,12.20572693]
[1768496581541,0.52183815,143.47,143.43,5.2338797]
[1768496581738,0.52183815,143.47,143.42,17.76850812]
[1768496582048,0.52183815,143.46,143.42,23.00253875]
[1768496582644,0.52183815,143.46,143.42,12.84253875]
[1768496583740,0.52183815,143.46,143.43,0.53616586]
[1768496583961,7.49241148,143.47,143.43,5.77004556]
[1768496585244,7.49241148,143.47,143.43,12.74195369]
[1768496585449,7.49241148,143.47,143.43,5.77004556]
[1768496586164,7.49241148,143.47,143.43,0.53616586]
[1768496586372,0.52183815,143.46,143.43,5.77004556]
[1768496588267,7.49258131,143.46,143.43,5.77004556]
[1768496588469,0.52183815,143.46,143.43,5.77004556]
[1768496589269,0.46183816,143.46,143.43,5.77004556]
[1768496589841,7.43254591,143.46,143.43,0.53616586]
[1768496590045,5.2338797,143.45,143.42,0.1]
[1768496590267,6.97070775,143.46,143.42,0.1]
[1768496590268,24.39716808,143.46,143.42,0.1]
[1768496590444,6.97070775,143.46,143.42,5.3338797]
[1768496590645,6.97024846,143.47,143.44,0.53616586]
[1768496591265,7.46607493,143.47,143.43,5.77004556]
[1768496591478,7.46607493,143.47,143.43,3.89375297]
[1768496592178,3.35758711,143.46,143.42,0.1]
[1768496592381,3.85072616,143.44,143.42,1e-08]
[1768496592679,3.85072616,143.44,143.4,0.2]
[1768496592680,0.49313905,143.43,143.4,0.2]
[1768496592860,0.49313905,143.43,143.4,0.73616586]
[1768496593048,3.85072616,143.45,143.41,0.53616586]
[1768496593249,3.85072616,143.45,143.41,3.89375297]
[1768496593250,0.49313905,143.45,143.41,3.89375297]
[1768496593474,0.49313905,143.45,143.42,0.53616586]
[1768496593475,7.46440231,143.45,143.42,0.53616586]
[1768496593693,7.46440231,143.45,143.41,3.89375297]
[1768496593911,7.46440231,143.45,143.41,0.53616586]
[1768496594195,7.46440231,143.45,143.41,3.89375297]
[1768496594376,10.82198942,143.45,143.41,0.53616586]
[1768496594574,0.49051301,143.44,143.41,0.53616586]
[1768496595372,7.46219292,143.44,143.41,0.53616586]
[1768496595774,10.81978003,143.44,143.41,0.53616586]
[1768496596189,7.46219292,143.44,143.41,0.53616586]
[1768496599496,7.46219292,143.44,143.4,4.09375297]
[1768496599878,7.46219292,143.44,143.41,0.53616586]
[1768496600204,6.97167991,143.44,143.41,0.53616586]
[1768496600413,24.87671833,143.48,143.44,0.53616586]
[1768496600705,6.96929905,143.49,143.46,3.89375297]
[1768496600893,6.96883639,143.5,143.47,0.50641945]
[1768496601070,6.96835725,143.51,143.48,3.86400656]
[1768496601293,6.96769331,143.52,143.49,0.50641945]
[1768496602126,7.4482884,143.52,143.48,0.50641945]
[1768496602299,7.4482884,143.52,143.48,3.86400656]
[1768496602801,7.4482884,143.52,143.48,3.83400656]
[1768496602998,0.50941856,143.5,143.45,3.35758711]
[1768496603200,0.50941856,143.5,143.44,10.04]
[1768496603519,3.86584266,143.49,143.44,13.39758711]
[1768496603691,6.96961248,143.48,143.44,20.36910266]
[1768496604414,7.47671838,143.48,143.44,10.04]
[1768496604796,6.96961248,143.48,143.45,0.49722847]
[1768496604996,24.89961315,143.48,143.44,0.49722847]
[1768496605801,24.89961315,143.48,143.44,3.85481558]
[1768496606228,24.89961315,143.48,143.44,0.49722847]
[1768496606429,24.89961315,143.48,143.44,3.85481558]
[1768496606739,24.89961315,143.48,143.44,0.49722847]
[1768496609329,0.50048004,143.47,143.43,10.04]
[1768496609527,0.50048004,143.47,143.43,10.53722847]
[1768496609735,0.50048004,143.47,143.43,0.49722847]
[1768496609944,0.50048004,143.46,143.41,10.0]
[1768496610111,0.50048004,143.44,143.4,0.69722847]
[1768496610304,6.97204211,143.43,143.4,0.69722847]
[1768496613212,17.93000565,143.44,143.39,1e-08]
[1768496613213,0.4973354,143.41,143.39,1e-08]
[1768496613421,9.98,143.44,143.37,0.1]
[1768496613628,3.35758711,143.39,143.36,0.2]
[1768496613834,3.35758711,143.39,143.36,1e-08]
[1768496614459,9.98,143.41,143.36,0.49722848]
[1768496614460,3.63519075,143.4,143.36,0.49722848]
[1768496614928,3.35758711,143.39,143.34,0.69722847]
[1768496615251,28.26243504,143.38,143.33,0.1]
[1768496615921,0.49419095,143.36,143.33,1e-08]
[1768496616943,0.49320162,143.37,143.33,1e-08]
[1768496617144,3.85078873,143.37,143.33,1e-08]
[1768496617348,6.97544642,143.36,143.33,0.49722848]
[1768496617849,7.46767007,143.36,143.33,1e-08]
[1768496618052,10.82525718,143.36,143.33,1e-08]
[1768496618544,28.26387325,143.36,143.33,1e-08]
[1768496618847,0.49255713,143.35,143.33,1e-08]
[1768496619025,0.43255714,143.35,143.33,1e-08]
[1768496619447,6.9764197,143.34,143.33,1e-08]
[1768496620452,0.54741072,143.33,143.29,0.1]
[1768496620650,0.48741073,143.33,143.29,0.59722847]
[1768496621442,6.97739324,143.32,143.29,0.59722847]
[1768496621644,6.97739324,143.32,143.29,1e-08]
[1768496621645,27.77846346,143.32,143.29,1e-08]
[1768496621829,24.42087635,143.32,143.29,1e-08]
[1768496622038,6.97739324,143.32,143.29,0.49722848]
[1768496622354,6.91739325,143.32,143.29,3.85481559]
[1768496622659,6.85739326,143.32,143.29,0.49722848]
[1768496622952,6.79739327,143.32,143.29,0.49722848]
[1768496623447,6.79739327,143.32,143.29,3.85481559]
[1768496623660,6.73739328,143.32,143.29,0.49722848]
[1768496623842,7.284804,143.32,143.29,0.49722848]
[1768496624159,0.54741072,143.31,143.29,1e-08]
[1768496624452,24.18087639,143.32,143.29,1e-08]
[1768496624650,24.72828711,143.32,143.29,1e-08]
[1768496625026,6.73739328,143.32,143.29,0.49722848]
[1768496625361,6.67739329,143.32,143.29,0.49722848]
[1768496626246,6.97706429,143.33,143.3,0.49722847]
[1768496626437,6.97706429,143.33,143.3,3.85481558]
[1768496626638,6.97706429,143.33,143.3,0.49722847]
[1768496626855,7.52447501,143.33,143.29,0.49722848]
[1768496627037,0.54741072,143.32,143.29,1e-08]
[1768496627236,6.97706429,143.33,143.29,0.49722848]
[1768496627745,7.52447501,143.33,143.29,0.49722848]
[1768496629162,3.90499783,143.32,143.29,1e-08]
[1768496629361,0.54741072,143.31,143.28,1e-08]
[1768496629538,0.54741072,143.31,143.28,0.49722848]
[1768496630049,7.52559997,143.31,143.28,0.49722848]
[1768496630252,6.97754098,143.32,143.28,0.49722848]
[1768496630457,6.97754098,143.32,143.29,0.49722847]
[1768496631147,3.35758711,143.34,143.31,0.53731508]
[1768496631148,6.9764197,143.34,143.31,0.53731508]
[1768496631348,7.48842303,143.34,143.3,3.89490219]
[1768496631750,24.92947228,143.34,143.3,3.89490219]
[1768496632556,24.92947228,143.34,143.3,0.53731508]
[1768496632762,24.41746895,143.34,143.31,0.53731508]
[1768496632957,24.92947228,143.34,143.3,3.89490219]
[1768496634046,24.92947228,143.34,143.31,0.53731508]
[1768496634047,6.91641971,143.34,143.31,0.53731508]
[1768496634547,7.42842304,143.34,143.31,0.53731508]
[1768496637049,24.86947229,143.34,143.31,0.53731508]
[1768496637249,6.85641972,143.34,143.31,0.53731508]
[1768496637552,7.48793636,143.35,143.31,0.53731508]
[1768496637758,24.92776893,143.35,143.31,0.53731508]
[1768496640673,7.50478119,143.4,143.35,0.53731508]
[1768496640860,0.51200333,143.39,143.35,0.53731508]
[1768496641249,0.51200333,143.38,143.35,0.53731508]
[1768496641648,28.27894033,143.39,143.35,0.53731508]
[1768496641850,24.92135322,143.39,143.35,0.53731508]
[1768496642357,28.27894033,143.39,143.35,0.53731508]
[1768496642556,0.51200333,143.37,143.33,0.53731508]
[1768496642872,24.40934989,143.39,143.32,3.35758711]
[1768496642873,0.51200333,143.35,143.32,0.53731508]
[1768496643451,0.51200333,143.32,143.28,1e-08]
[1768496643652,0.51200333,143.33,143.28,20.15692511]
[1768496644560,17.95328101,143.34,143.28,20.15692511]
[1768496645072,9.84,143.37,143.28,20.15692511]
[1768496645073,0.51200333,143.35,143.3,3.35758711]
[1768496645555,0.51200333,143.35,143.3,3.89490219]
[1768496645884,6.97615754,143.35,143.31,0.53731508]
[1768496646078,6.97615754,143.35,143.32,0.53731508]
[1768496646775,9.84,143.37,143.33,0.53731508]
[1768496646979,9.84,143.37,143.33,3.89490219]
[1768496647180,17.94869484,143.38,143.33,3.89490219]
[1768496647388,0.51200333,143.37,143.33,0.53731508]
[1768496648381,0.51200333,143.35,143.3,0.53731508]
[1768496648565,0.51200333,143.35,143.3,13.69490219]
[1768496649565,7.48835993,143.35,143.3,20.67304987]
[1768496650479,7.42835994,143.35,143.3,20.67304987]
[1768496650777,7.42835994,143.35,143.31,0.53731508]
[1768496651275,7.42835994,143.35,143.31,7.51517625]
[1768496651477,7.42835994,143.35,143.31,3.89490219]
[1768496651860,0.45200334,143.35,143.32,0.53731508]
[1768496652060,6.97565736,143.36,143.32,0.53731508]
[1768496652788,6.97565736,143.36,143.33,0.53731508]
[1768496653082,7.48766069,143.36,143.32,3.89490219]
[1768496653283,0.51200333,143.35,143.31,3.89490219]
[1768496653466,0.51200333,143.35,143.31,0.53731508]
[1768496655187,7.48828645,143.35,143.31,0.53731508]
[1768496655987,7.48828645,143.35,143.31,5.79155872]
[1768496657180,0.51200333,143.34,143.3,5.79155872]
[1768496657382,0.51200333,143.34,143.29,5.79155872]
[1768496657568,6.97628312,143.35,143.31,0.53731508]
[1768496657769,7.48828645,143.35,143.31,0.53731508]
[1768496658175,0.51200333,143.34,143.3,5.79155872]
[1768496659004,0.51200333,143.34,143.3,0.53731508]
[1768496659486,6.97690643,143.33,143.3,0.53731508]
[1768496659693,7.48744975,143.36,143.32,0.53731508]
[1768496659887,6.97517383,143.37,143.34,0.53731508]
[1768496660264,7.48666407,143.38,143.34,5.79155872]
[1768496660471,7.48666407,143.38,143.35,5.79155872]
[1768496661695,7.48666407,143.38,143.34,0.48985188]
[1768496664285,0.48512252,143.36,143.33,5.25424364]
[1768496664582,0.48512252,143.36,143.32,5.74409552]
[1768496665292,0.48512252,143.36,143.32,12.72140271]
[1768496665984,0.48512252,143.36,143.31,22.45662982]
[1768496666378,7.46091232,143.36,143.32,5.73895941]
[1768496666692,6.9757898,143.36,143.33,0.48471577]
[1768496670198,0.4986063,143.36,143.33,0.48471577]
[1768496670373,6.97411786,143.39,143.36,0.48471577]
[1768496670691,17.21225789,143.4,143.37,5.25424364]
[1768496670891,7.47225789,143.4,143.37,5.25424364]
[1768496671894,0.4986063,143.39,143.35,0.48471577]
[1768496672091,0.4986063,143.39,143.35,5.25424364]
[1768496672392,7.47307972,143.38,143.34,17.14112383]
[1768496672589,7.47307972,143.38,143.31,17.4439597]
[1768496672590,0.4986063,143.37,143.32,0.48471577]
[1768496672789,0.4986063,143.37,143.34,9.66]
[1768496673477,6.97447342,143.38,143.35,0.48471577]
[1768496674582,0.4986063,143.38,143.34,14.91424364]
[1768496677003,6.97495989,143.37,143.34,14.91424364]
[1768496678006,6.97495989,143.37,143.34,15.39895941]
[1768496678600,6.97495989,143.37,143.34,10.14471577]
[1768496678809,6.97495989,143.37,143.34,15.39895941]
[1768496680893,6.97495989,143.37,143.34,10.14471577]
[1768496681207,0.4986063,143.37,143.34,14.88424364]
[1768496683104,0.4986063,143.37,143.34,15.36895941]
[1768496683911,7.47387776,143.37,143.34,14.88424364]
[1768496685614,7.47387776,143.37,143.34,9.63]
[1768496685914,7.47387776,143.37,143.34,14.88424364]
[1768496686212,7.47387776,143.37,143.35,5.25424364]
[1768496686614,24.90756089,143.39,143.36,0.48471577]
[1768496687305,24.90756089,143.39,143.35,5.25424364]
[1768496688997,24.90756089,143.39,143.34,9.63]
[1768496689198,24.90756089,143.39,143.35,5.25424364]
[1768496689516,24.90756089,143.39,143.35,5.58153435]
[1768496689719,6.97359575,143.4,143.37,5.58160888]
[1768496689921,6.97317329,143.41,143.38,5.58160888]
[1768496691025,6.97317329,143.41,143.39,5.22424364]
[1768496691194,6.97317329,143.41,143.38,1.06e-06]
[1768496691394,6.97317329,143.41,143.39,5.25424364]
[1768496691592,6.97317329,143.41,143.39,3.38059369]
[1768496692491,7.47136337,143.42,143.39,3.38059369]
[1768496692692,7.47136337,143.42,143.38,1.06e-06]
[1768496692916,0.52065836,143.41,143.37,16.55472501]
[1768496693115,0.52065836,143.41,143.38,5.25424364]
[1768496694809,7.4941201,143.41,143.38,5.25424364]
[1768496695312,6.97346174,143.41,143.38,5.25424364]
[1768496696390,7.49334244,143.42,143.38,12.22861409]
[1768496698315,7.49334244,143.42,143.37,16.55480618]
[1768496698516,0.52065836,143.41,143.38,5.25424364]
[1768496698901,7.49334244,143.42,143.38,5.25424364]
[1768496699516,7.49334244,143.42,143.39,5.25424364]
[1768496701711,6.97268408,143.42,143.39,5.25424364]
[1768496702631,6.97268408,143.42,143.4,5.25424364]
[1768496703138,6.97268408,143.42,143.38,6.97446805]
[1768496703139,0.52065836,143.42,143.38,0.02036172]
[1768496703429,0.52065836,143.42,143.37,14.85460536]
[1768496703599,0.52065836,143.4,143.35,5.27644812]
[1768496703805,0.52065836,143.39,143.34,0.02220448]
[1768496704008,0.52065836,143.39,143.34,14.77644812]
[1768496704302,0.52065836,143.41,143.37,5.27826972]
[1768496704507,0.52065836,143.41,143.38,5.25424364]
[1768496705523,16.47260617,143.42,143.39,5.25424364]
[1768496705708,7.49326453,143.42,143.39,5.25424364]
[1768496707127,7.49326453,143.42,143.38,5.28007039]
[1768496707536,7.49326453,143.42,143.39,5.25424364]
[1768496707727,6.97221368,143.43,143.4,5.28360993]
[1768496710931,0.52065836,143.43,143.4,5.25424364]
[1768496711425,0.52065836,143.43,143.39,0.03452459]
[1768496711819,0.52065836,143.43,143.39,5.28876823]
[1768496712822,0.52065836,143.41,143.38,5.25424364]
[1768496713126,0.52065836,143.41,143.37,14.79210911]
[1768496713332,0.52065836,143.41,143.37,12.897746]
[1768496713834,0.52065836,143.41,143.38,3.35988053]
[1768496715140,7.49376235,143.41,143.38,3.35988053]
[1768496715432,0.52065836,143.43,143.4,3.35988053]
[1768496715638,9.46,143.44,143.4,3.35988053]
[1768496715639,16.95244341,143.44,143.4,3.40261478]
[1768496715936,16.95244341,143.44,143.41,3.35988053]
[1768496716131,7.49244341,143.44,143.41,3.35988053]
[1768496716536,104.52065836,143.47,143.42,3.40420058]
[1768496716729,6.96961248,143.48,143.45,3.40420058]
[1768496717316,7.49027084,143.48,143.45,3.35988053]
[1768496717935,0.52065836,143.48,143.45,3.35988053]
[1768496718722,0.52065836,143.49,143.46,3.35988053]
[1768496719425,0.52065836,143.5,143.47,3.35988053]
[1768496719611,7.48946278,143.5,143.46,3.4088495]
[1768496720836,6.96880442,143.5,143.47,0.05197993]
[1768496721021,6.96880442,143.5,143.46,3.41186046]
[1768496722740,0.53952853,143.5,143.46,3.41186046]
[1768496723232,7.50768405,143.51,143.48,3.35988053]
[1768496725347,0.54009025,143.5,143.46,0.06060646]
[1768496725525,0.54009025,143.5,143.45,3.35988053]
[1768496726025,0.54009025,143.5,143.46,3.42048699]
[1768496726942,0.54009025,143.5,143.46,3.35988053]
[1768496727241,7.5090632,143.5,143.46,3.35988053]
[1768496727437,7.5090632,143.5,143.44,9.42]
[1768496727438,0.54009025,143.49,143.44,12.77988053]
[1768496727629,0.54009025,143.48,143.44,9.42]
[1768496727825,0.54009025,143.47,143.44,9.42]
[1768496728725,0.54009025,143.47,143.44,12.77988053]
[1768496730226,7.51037186,143.47,143.44,12.77988053]
[1768496731943,6.96978311,143.48,143.45,3.42853582]
[1768496732118,0.54009025,143.49,143.46,3.35988053]
[1768496733036,0.54009025,143.51,143.46,3.35988053]
[1768496733350,0.54009025,143.51,143.46,3.42982388]
[1768496734237,0.54009025,143.5,143.46,3.42982388]
[1768496734745,7.50824577,143.51,143.47,3.43235579]
[1768496736241,0.54009025,143.5,143.45,7.0447895]
[1768496736457,0.54009025,143.49,143.44,19.82631443]
[1768496738636,0.54009025,143.48,143.44,19.82631443]
[1768496738855,0.54009025,143.48,143.45,3.35988053]
[1768496739758,0.54009025,143.48,143.45,10.33086348]
[1768496740140,0.54009025,143.48,143.46,3.35988053]
[1768496740341,0.54009025,143.49,143.46,3.35988053]
[1768496741158,7.50842339,143.51,143.47,3.43960981]
[1768496741362,7.50842339,143.51,143.48,3.35988053]
[1768496741564,0.54009025,143.5,143.45,7.05187309]
[1768496741756,0.54009025,143.5,143.47,3.35988053]
[1768496741951,0.54009025,143.5,143.47,12.65988053]
[1768496743047,0.54009025,143.5,143.47,9.3]
[1768496743645,0.54009025,143.49,143.46,3.35988053]
[1768496743846,7.50880042,143.5,143.46,3.35988053]
[1768496745546,7.50880042,143.5,143.46,10.33019978]
[1768496748069,7.50880042,143.5,143.46,6.97031925]
[1768496748272,0.54009025,143.49,143.45,9.28]
[1768496749569,0.54009025,143.49,143.45,16.25101385]
[1768496750352,0.54009025,143.49,143.46,3.35988053]
[1768496751582,7.54607237,143.5,143.46,3.45269302]
[1768496752657,0.57714927,143.49,143.46,3.35988053]
[1768496753478,0.57714927,143.49,143.45,19.61089438]
[1768496753678,0.57714927,143.49,143.45,9.28]
[1768496754467,0.57714927,143.49,143.45,16.25099397]
[1768496755171,0.57714927,143.48,143.42,10.42788311]
[1768496755477,0.57714927,143.47,143.42,3.45666628]
[1768496756376,0.57714927,143.48,143.44,3.35988053]
[1768496756577,0.57714927,143.48,143.44,10.42884388]
[1768496756784,0.57714927,143.48,143.44,19.64884388]
[1768496757078,0.57714927,143.48,143.44,16.28896335]
[1768496757276,0.57714927,143.48,143.44,19.64884388]
[1768496758468,7.54685266,143.48,143.44,19.64884388]
[1768496759864,7.54685266,143.48,143.44,12.67763124]
[1768496760375,7.54685266,143.48,143.44,19.64909031]
[1768496761056,17.42214468,143.5,143.44,19.64909031]
[1768496761057,6.96925258,143.49,143.45,3.4613815]
[1768496761263,6.96925258,143.49,143.46,3.35988053]
[1768496761564,0.57714927,143.49,143.46,3.35988053]
[1768496761762,0.57714927,143.49,143.45,10.33073836]
[1768496762065,0.57714927,143.49,143.44,19.65361859]
[1768496762986,0.57714927,143.49,143.44,16.19132629]
[1768496763282,0.57714927,143.44,143.38,3.35988053]
[1768496763464,7.5501637,143.41,143.37,16.25894687]
[1768496763664,7.5501637,143.41,143.37,9.2842021]
[1768496764285,0.57714927,143.4,143.37,9.18]
[1768496764484,0.38993556,143.4,143.34,10.62811409]
[1768496764680,3.35988053,143.4,143.34,7.26823356]
[1768496765582,6.97398702,143.39,143.34,10.62811409]
[1768496765959,6.97398702,143.39,143.34,0.29229558]
[1768496766163,6.97398702,143.39,143.34,0.29316525]
[1768496766365,7.55113629,143.39,143.34,0.29316525]
[1768496766887,7.55113629,143.39,143.34,7.26954091]
[1768496767185,0.57714927,143.38,143.33,19.81066605]
[1768496767385,0.57714927,143.38,143.33,12.83390546]
[1768496767994,6.97495989,143.37,143.33,12.83390546]
[1768496768365,6.97495989,143.37,143.33,19.81077907]
[1768496768568,0.57714927,143.38,143.33,19.81077907]
[1768496768569,7.55181988,143.38,143.33,19.81077907]
[1768496769570,0.57714927,143.37,143.33,19.81077907]
[1768496769884,0.57714927,143.35,143.31,10.63426831]
[1768496770187,0.51714926,143.35,143.31,10.63426831]
[1768496770785,6.97544642,143.36,143.31,10.63426831]
[1768496770972,6.97495989,143.37,143.32,3.71793558]
[1768496772083,7.55210916,143.37,143.32,3.71793558]
[1768496772485,7.55210916,143.37,143.32,0.35805505]
[1768496772676,7.55210916,143.37,143.32,3.71793558]
[1768496773068,7.55210916,143.37,143.32,10.69509149]
[1768496774267,0.57714927,143.36,143.32,7.33521096]
[1768496774476,7.552707,143.36,143.32,7.33521096]
[1768496775577,0.57714927,143.35,143.3,16.13801438]
[1768496775891,0.57714927,143.35,143.3,21.75723399]
[1768496776263,0.57714927,143.35,143.3,16.50340719]
[1768496776568,0.57714927,143.35,143.3,21.75723399]
[1768496776768,0.57714927,143.34,143.3,21.75723399]
[1768496778372,7.55289048,143.36,143.32,5.62352819]
[1768496778779,7.55289048,143.36,143.32,5.2538268]
[1768496778980,0.57714927,143.35,143.32,5.2538268]